fUSD/lending_fUSD_20240515
["ID","MTS","AMOUNT","RATE_DAILY","PERIOD"]
[327076064,1715785839320,-408.19817109,0.00011897,2]
[327076065,1715785839330,-500.0,0.00011897,2]
[327076068,1715785839340,-500.0,0.00011897,2]
[327076070,1715785839349,-500.0,0.00011897,2]
[327076072,1715785839358,-500.0,0.00011897,2]
[327076073,1715785839367,-540.20283223,0.00011897,2]
[327076076,1715785839377,-500.0,0.00011897,2]
[327076078,1715785839387,-500.0,0.00011897,2]
[327076079,1715785839396,-500.0,0.00011897,2]
[327076082,1715785839407,-500.0,0.00011897,2]
[327076083,1715785839417,-500.0,0.00011897,2]
[327076086,1715785839427,-500.0,0.00011897,2]
[327076088,1715785839436,-284.0751755,0.00011897,2]
[327076089,1715785839445,-500.0,0.00011897,2]
[327076091,1715785839455,-500.0,0.00011897,2]
[327076093,1715785839464,-500.0,0.00011897,2]
[327076096,1715785839474,-500.0,0.00011897,2]
[327076097,1715785839483,-500.0,0.00011897,2]
[327076099,1715785839493,-500.0,0.00011897,2]
[327076102,1715785839503,-500.0,0.00011897,2]
[327076104,1715785839514,-615.75,0.00011897,2]
[327076106,1715785839523,-500.0,0.00011897,2]
[327076107,1715785839532,-500.0,0.00011897,2]
[327076109,1715785839542,-504.0607496,0.00011897,2]
[327076111,1715785839552,-500.0,0.00011897,2]
[327076113,1715785839562,-500.0,0.00011897,2]
[327076115,1715785839572,-500.0,0.00011897,2]
[327076117,1715785839582,-278.72,0.00011897,2]
[327076119,1715785839591,-500.0,0.00011897,2]
[327076121,1715785839602,-500.0,0.00011897,2]
[327076123,1715785839612,-500.0,0.00011897,2]
[327076125,1715785839622,-500.0,0.00011897,2]
[327076127,1715785839631,-494.996004,0.00011897,2]
[327076129,1715785839641,-2246.99426724,0.00011898,2]
[327076131,1715785839651,-2246.99426724,0.00011898,2]
[327076133,1715785839660,-2246.99426724,0.00011898,2]
[327076135,1715785839670,-2246.99426724,0.00011898,2]
[327076137,1715785839683,-2246.99426724,0.00011898,2]
[327076139,1715785839693,-2246.99426724,0.00011898,2]
[327076141,1715785839704,-4297.6801,0.00011898,2]
[327076143,1715785839713,-186.26694726,0.000119,2]
[327076145,1715785839724,-4607.33940295,0.000119,2]
[327076147,1715785839733,-171.47681867,0.000119,2]
[327076149,1715785839743,-162.2552826,0.000119,2]
[327076151,1715785839753,-1000.0,0.00011904,2]
[327076153,1715785839762,-500.0,0.00011904,2]
[327076155,1715785839775,-2246.99426724,0.00011905,2]
[327076156,1715785839785,-150.0,0.00011911,2]
[327076158,1715785839794,-150.0,0.00011915,2]
[327076161,1715785839804,-150.0,0.00011925,2]
[327076163,1715785839813,-150.0,0.00011931,2]
[327076164,1715785839823,-162.21,0.00011945,2]
[327076166,1715785839832,-150.0,0.00011945,2]
[327076168,1715785839843,-150.0,0.00011945,2]
[327076170,1715785839852,-150.0,0.00011945,2]
[327076172,1715785839861,-150.0,0.00011945,2]
[327076174,1715785839871,-150.0,0.00011948,2]
[327076177,1715785839881,-150.0,0.0001195,2]
[327076179,1715785839890,-150.0,0.00011953,2]
[327076180,1715785839900,-150.0,0.00011975,2]
[327076182,1715785839909,-16263.36332725,0.00011985,2]
[327076186,1715785840090,-5912.63667275,0.00011985,2]
[327076187,1715785840100,-150.0,0.00011988,2]
[327076188,1715785840110,-463.34,0.00011989,2]
[327076189,1715785840119,-19136.96975111,0.0001199,2]
[327076190,1715785840130,-645.95,0.0001199,2]
[327076191,1715785840141,-646.184,0.0001199,2]
[327076192,1715785840153,-10151.98966061,0.0001199,2]
[327076193,1715785840162,-4607.33940291,0.00011991,2]
[327076194,1715785840172,-919.473891,0.00011992,2]
[327076195,1715785840181,-919.473891,0.00011992,2]
[327076196,1715785840190,-919.473891,0.00011992,2]
[327076197,1715785840200,-919.473891,0.00011992,2]
[327076198,1715785840209,-919.473891,0.00011992,2]
[327076199,1715785840219,-14763.8365499,0.00011993,2]
[327076200,1715785840229,-3162.0999475,0.00011993,2]
[327076201,1715785840238,-11756.48901643,0.00011993,2]
[327076202,1715785840250,-13905.68630547,0.00011993,2]
[327076203,1715785840261,-2392.3686317,0.00011993,2]
[327076204,1715785840270,-6478.52246766,0.00011996,2]
[327076205,1715785840279,-12751.45335466,0.00011996,2]
[327076206,1715785840289,-3351.38867927,0.00011996,2]
[327076207,1715785840299,-3026.24071623,0.00011996,2]
[327076208,1715785840308,-413.06779798,0.00011996,2]
[327076209,1715785840318,-156.36398372,0.00011996,2]
[327076210,1715785840328,-389.16633426,0.00011996,2]
[327076211,1715785840338,-155.89403417,0.00011996,2]
[327076212,1715785840348,-256.74256768,0.00011996,2]
[327076213,1715785840358,-155.77980252,0.00011996,2]
[327076214,1715785840368,-194.65788438,0.00011996,2]
[327076215,1715785840377,-177.08401672,0.00011996,2]
[327076216,1715785840387,-155.7920356,0.00011996,2]
[327076217,1715785840397,-500.0,0.00011996,2]
[327076218,1715785840406,-509.31544777,0.00011997,2]
[327076219,1715785840416,-500.0,0.00011997,2]
[327076220,1715785840425,-500.0,0.00011997,2]
[327076221,1715785840435,-500.0,0.00011997,2]
[327076222,1715785840444,-500.0,0.00011997,2]
[327076223,1715785840454,-500.0,0.00011997,2]
[327076224,1715785840463,-278.5,0.00011997,2]
[327076225,1715785840473,-270.25,0.00011997,2]
[327076226,1715785840482,-565.42388381,0.00011997,2]
[327076227,1715785840491,-500.0,0.00011997,2]
[327076228,1715785840502,-158.3,0.00011997,2]
[327076229,1715785840511,-548.65,0.00011997,2]
[327076230,1715785840520,-500.0,0.00011997,2]
[327076231,1715785840529,-615.75,0.00011997,2]
[327076232,1715785840538,-500.0,0.00011997,2]
[327076233,1715785840547,-546.26,0.00011997,2]
[327076234,1715785840567,-500.0,0.00011997,2]
[327076235,1715785840576,-16504.49168416,0.00011998,2]
[327076236,1715785840624,-341.328,0.00011998,2]
[327076237,1715785840636,-983.34596549,0.00011998,2]
[327076238,1715785840647,-1394.11468264,0.00011998,2]
[327076239,1715785840658,-1053.98522685,0.00011998,2]
[327076240,1715785840669,-500.00773998,0.00011998,2]
[327076241,1715785840680,-3261.70212212,0.00011998,2]
[327076242,1715785840696,-211820.33972051,0.00011998,2]
[327076243,1715785840707,-5128.81878843,0.00011998,2]
[327076244,1715785840718,-353.34742176,0.00011998,2]
[327076245,1715785840730,-14614.39512039,0.00011998,2]
[327076246,1715785840742,-2284.44246381,0.00011998,2]
[327076247,1715785840755,-893.76999997,0.00011998,2]
[327076248,1715785840769,-2907.1,0.00011998,2]
[327076266,1715785843073,-586.37324016,0.00011996,2]
[327076267,1715785843082,-92.18925984,0.00011998,2]
[327076268,1715785843107,-13042.81262325,0.00011998,2]
[327076271,1715785843123,-2447.94336982,0.00011998,2]
[327076273,1715785843136,-9703.95244364,0.00011998,2]
[327076274,1715785843571,-3235.30182298,0.00011998,2]
[327076279,1715785846247,-154.42,9.278e-05,2]
[327076280,1715785846260,-150.0,0.00011897,2]
[327076281,1715785846270,-4588.81044059,0.00011998,2]
[327076282,1715785846279,-10242.95587647,0.00011998,2]
[327076283,1715785846289,-3087.90524962,0.00011998,2]
[327076284,1715785846299,-199.53080931,0.00011998,2]
[327076285,1715785846308,-733.63577856,0.00011998,2]
[327076286,1715785846317,-155.22619343,0.00011998,2]
[327076287,1715785846327,-157.75242174,0.00011998,2]
[327076288,1715785846336,-223.06160354,0.00011998,2]
[327076289,1715785846346,-885.67510047,0.00011998,2]
[327076290,1715785846356,-2216.5040853,0.00011998,2]
[327076291,1715785846365,-829.99220016,0.00011998,2]
[327076292,1715785846374,-155.0,0.00011998,2]
[327076293,1715785846383,-282.3483767,0.00011998,2]
[327076294,1715785846393,-414.76567386,0.00011998,2]
[327076295,1715785846402,-1274.38651973,0.00011998,2]
[327076296,1715785846411,-200.0,0.00011998,2]
[327076297,1715785846420,-500.0,0.00011998,2]
[327076298,1715785846429,-500.0,0.00011998,2]
[327076299,1715785846439,-265.0,0.00011998,2]
[327076300,1715785846448,-500.0,0.00011998,2]
[327076301,1715785846457,-500.0,0.00011998,2]
[327076302,1715785846467,-615.75,0.00011998,2]
[327076303,1715785846476,-500.0,0.00011998,2]
[327076304,1715785846485,-500.0,0.00011998,2]
[327076305,1715785846495,-3000.0,0.00011998,2]
[327076306,1715785846507,-1245.14229085,0.00011999,2]
[327076307,1715785846516,-150.37435882,0.00011999,2]
[327076308,1715785846526,-3000.0,0.00011999,2]
[327076309,1715785846535,-3000.0,0.00011999,2]
[327076310,1715785846545,-3000.0,0.00011999,2]
[327076311,1715785846554,-3000.0,0.00011999,2]
[327076312,1715785846564,-3000.0,0.00011999,2]
[327076313,1715785846573,-3000.0,0.00011999,2]
[327076314,1715785846582,-3000.0,0.00011999,2]
[327076315,1715785846591,-3000.0,0.00011999,2]
[327076316,1715785846601,-3000.0,0.00011999,2]
[327076317,1715785846610,-3000.0,0.00011999,2]
[327076318,1715785846620,-399.41110453,0.00011999,2]
[327076319,1715785846632,-56.82516161,0.00011999,2]
[327076320,1715785846642,-500.0,0.00011999,2]
[327076321,1715785846651,-500.0,0.00011999,2]
[327076322,1715785846660,-500.0,0.00011999,2]
[327076323,1715785846669,-97.17496639,0.00011999,2]
[327076376,1715786603534,151.0,0.00020469,120]
[327076377,1715786604385,352.716517,8.178e-05,2]
[327076380,1715786630779,345.95337229,8.178e-05,2]
[327076382,1715786632092,400.11887596,8.178e-05,2]
[327076384,1715786633084,173.43554886,8.178e-05,2]
[327076385,1715786634694,1377.29078847,8.178e-05,2]
[327076386,1715786646787,203.54264365,8.178e-05,2]
[327076387,1715786649638,366.56331924,8.178e-05,2]
[327076388,1715786650119,399.82259544,8.178e-05,2]
[327076389,1715786650687,1375.27347095,8.178e-05,2]
[327076390,1715786651094,173.43554886,8.178e-05,2]
[327076392,1715786665583,283.80709424,8.178e-05,2]
[327076393,1715786669107,173.05015041,8.178e-05,2]
[327076396,1715786697106,547358.28128245,8.178e-05,2]
[327076397,1715786714586,123436.70892992,8.178e-05,2]
[327076398,1715786714611,423921.57235253,8.178e-05,2]
[327076399,1715786732587,167980.9755467,8.178e-05,2]
[327076427,1715786859563,154.42,8.219e-05,2]
[327076432,1715787004057,150.0,8.219e-05,2]
[327076433,1715787004265,150.0,8.219e-05,2]
[327076434,1715787004466,150.0,8.219e-05,2]
[327076435,1715787004651,150.82864206,8.219e-05,2]
[327076438,1715787035651,-817.82411991,8.995e-05,2]
[327076440,1715787035663,-2254.09588009,8.996e-05,2]
[327076442,1715787035678,-519.01089523,8.996e-05,2]
[327076445,1715787035692,-768.16913012,8.996e-05,2]
[327076447,1715787035705,-544.86452553,8.996e-05,2]
[327076449,1715787035720,-689.30241408,8.996e-05,2]
[327076452,1715787035732,-434.33736611,8.996e-05,2]
[327076454,1715787035746,-670.45812629,8.996e-05,2]
[327076456,1715787035759,-1400.0,8.996e-05,2]
[327076458,1715787035772,-1297.98065689,8.996e-05,2]
[327076460,1715787035786,-1004.8259546,8.996e-05,2]
[327076462,1715787035799,-387.51100691,8.996e-05,2]
[327076464,1715787035811,-696.77431602,8.996e-05,2]
[327076465,1715787035823,-2245.43580064,8.996e-05,2]
[327076467,1715787035834,-30379.51194937,8.996e-05,2]
[327076468,1715787035844,-4962.79668519,8.996e-05,2]
[327076470,1715787035852,-8.69762228,8.997e-05,2]
[327076475,1715787036328,-286.18192272,8.997e-05,2]
[327076477,1715787036340,-2359.58374539,8.997e-05,2]
[327076488,1715787038451,-2970.11507769,8.997e-05,2]
[327076489,1715787038463,-3173.85318333,8.997e-05,2]
[327076490,1715787038476,-353.47386846,8.999e-05,2]
[327076491,1715787038485,-1000.0,9.478e-05,2]
[327076492,1715787038495,-1500.0,9.706e-05,2]
[327076493,1715787038505,-440.19,9.751e-05,3]
[327076494,1715787038514,-640.94,9.752e-05,2]
[327076495,1715787038525,-439.08,9.762e-05,2]
[327076496,1715787038534,-250.0,9.791e-05,2]
[327076497,1715787038544,-250.0,9.799e-05,2]
[327076498,1715787038554,-234.15,9.8e-05,2]
[327076499,1715787038563,-153.23,9.812e-05,2]
[327076500,1715787038573,-1852.42,9.817e-05,2]
[327076501,1715787038583,-162.4,9.859e-05,2]
[327076502,1715787038592,-1291.4,9.867e-05,2]
[327076503,1715787038602,-162.4,9.886e-05,2]
[327076504,1715787038612,-162.4,9.913e-05,2]
[327076505,1715787038622,-162.4,9.94e-05,2]
[327076506,1715787038631,-162.4,9.967e-05,2]
[327076507,1715787038640,-162.4,9.994e-05,2]
[327076508,1715787038651,-162.4,0.00010021,2]
[327076509,1715787038661,-162.4,0.00010048,2]
[327076510,1715787038671,-162.4,0.00010076,2]
[327076511,1715787038680,-162.4,0.00010103,2]
[327076512,1715787038690,-162.4,0.0001013,2]
[327076513,1715787038700,-162.4,0.00010157,2]
[327076514,1715787038710,-162.4,0.00010184,2]
[327076515,1715787038722,-162.4,0.00010211,2]
[327076516,1715787038732,-162.4,0.00010238,2]
[327076517,1715787038741,-162.4,0.00010265,2]
[327076518,1715787038751,-162.4,0.00010292,2]
[327076519,1715787038760,-162.4,0.00010319,2]
[327076520,1715787038770,-178.29,0.00010334,2]
[327076521,1715787038780,-162.4,0.00010346,2]
[327076522,1715787038790,-499.99,0.00010353,2]
[327076523,1715787038799,-162.4,0.00010373,2]
[327076524,1715787038808,-170.0,0.00010424,2]
[327076525,1715787038818,-1000.0,0.00010663,2]
[327076526,1715787038827,-14994.98294821,0.00010665,2]
[327076527,1715787038840,-6869.13105179,0.00010665,2]
[327076528,1715787038850,-155.41771139,0.00010798,2]
[327076529,1715787038860,-2597.4218,0.00010896,2]
[327076530,1715787038869,-629.6,0.00010959,2]
[327076531,1715787038879,-843.09,0.00010959,2]
[327076532,1715787038888,-749.98609132,0.00011,2]
[327076533,1715787038898,-393.91,0.00011141,2]
[327076534,1715787038908,-742.42,0.00011141,2]
[327076535,1715787038918,-407.58,0.00011178,2]
[327076536,1715787038928,-300.0,0.00011178,2]
[327076537,1715787038939,-300.0,0.00011178,2]
[327076538,1715787038948,-300.0,0.00011178,2]
[327076539,1715787038958,-154.42,0.00011267,2]
[327076540,1715787038969,-300.0,0.00011278,2]
[327076541,1715787038980,-1046.84,0.00011278,2]
[327076542,1715787038989,-163.27,0.00011278,2]
[327076543,1715787038999,-199.05463752,0.00011278,2]
[327076544,1715787039011,-503.72536248,0.00011278,2]
[327076545,1715787039020,-840.5,0.00011278,2]
[327076546,1715787039030,-8501.9805,0.000113,2]
[327076547,1715787039040,-150.0,0.00011315,2]
[327076548,1715787039050,-150.0,0.00011315,2]
[327076549,1715787039065,-150.0,0.00011315,2]
[327076550,1715787039075,-150.0,0.00011315,2]
[327076551,1715787039086,-150.0,0.00011315,2]
[327076552,1715787039096,-987.18,0.0001137,2]
[327076553,1715787039107,-150.0,0.0001137,2]
[327076554,1715787039116,-326.62,0.0001137,2]
[327076555,1715787039126,-150.0,0.0001137,2]
[327076556,1715787039136,-150.0,0.0001137,2]
[327076557,1715787039146,-150.0,0.0001137,2]
[327076558,1715787039158,-151.84,0.00011378,2]
[327076559,1715787039168,-262.63269665,0.00011398,2]
[327076560,1715787039178,-96.87488021,0.000114,2]
[327076566,1715787039297,-919.89601438,0.00011319,2]
[327076567,1715787039307,-1354.48137972,0.000114,2]
[327076568,1715787039319,-68957.14962776,0.000114,2]
[327076569,1715787039331,-473.3383626,0.000114,2]
[327076570,1715787039343,-1562.504936,0.000114,2]
[327076571,1715787039355,-526.07490378,0.000114,2]
[327076572,1715787039367,-59111.15040993,0.000114,2]
[327076573,1715787039376,-13482.6879,0.000114,2]
[327076574,1715787039386,-100000.0,0.000114,2]
[327076575,1715787039401,-2005.22632889,0.000115,2]
[327076576,1715787039410,-2158.0,0.00011563,2]
[327076577,1715787039420,-1399.0,0.00011563,2]
[327076578,1715787039430,-37836.0,0.00011563,2]
[327076579,1715787039441,-206.7616193,0.0001168,2]
[327076580,1715787039451,-150.0,0.0001174,2]
[327076581,1715787039461,-150.0,0.00011744,2]
[327076582,1715787039472,-150.0,0.00011744,2]
[327076583,1715787039482,-150.0,0.00011745,2]
[327076584,1715787039492,-150.0,0.00011747,2]
[327076585,1715787039502,-150.0,0.00011751,2]
[327076586,1715787039513,-150.0,0.00011752,2]
[327076587,1715787039522,-150.0,0.00011757,2]
[327076588,1715787039532,-150.0,0.00011758,2]
[327076589,1715787039542,-1047.62624989,0.00011759,2]
[327076590,1715787039552,-1325.69527017,0.00011759,2]
[327076591,1715787039562,-150.0,0.00011762,2]
[327076592,1715787039572,-150.0,0.00011764,2]
[327076593,1715787039583,-150.0,0.0001177,2]
[327076594,1715787039593,-150.0,0.00011773,2]
[327076595,1715787039603,-150.0,0.00011779,2]
[327076596,1715787039613,-500.0,0.0001178,2]
[327076597,1715787039624,-500.0,0.0001178,2]
[327076598,1715787039634,-278.5,0.0001178,2]
[327076599,1715787039644,-270.25,0.0001178,2]
[327076600,1715787039655,-158.3,0.0001178,2]
[327076601,1715787039665,-548.65,0.0001178,2]
[327076602,1715787039676,-500.0,0.0001178,2]
[327076603,1715787039686,-565.42388381,0.0001178,2]
[327076604,1715787039696,-539.07498699,0.0001178,2]
[327076605,1715787039707,-500.0,0.0001178,2]
[327076606,1715787039717,-3000.0,0.0001178,2]
[327076607,1715787039728,-3000.0,0.0001178,2]
[327076608,1715787039738,-500.0,0.0001178,2]
[327076609,1715787039748,-500.0,0.0001178,2]
[327076610,1715787039758,-500.0,0.0001178,2]
[327076611,1715787039768,-1622.45,0.0001178,2]
[327076612,1715787039778,-1315.06,0.0001178,2]
[327076613,1715787039788,-735.72,0.0001178,2]
[327076614,1715787039797,-500.0,0.0001178,2]
[327076615,1715787039807,-208.74,0.0001178,2]
[327076616,1715787039816,-208.2898989,0.0001178,2]
[327076617,1715787039826,-546.26,0.0001178,2]
[327076618,1715787039836,-500.0,0.0001178,2]
[327076619,1715787039846,-500.0,0.0001178,2]
[327076620,1715787039856,-500.0,0.0001178,2]
[327076621,1715787039866,-150.0,0.00011782,2]
[327076622,1715787039875,-150.0,0.00011785,2]
[327076623,1715787039884,-150.0,0.00011785,2]
[327076624,1715787039894,-150.0,0.00011786,2]
[327076625,1715787039903,-150.0,0.00011789,2]
[327076626,1715787039913,-150.0,0.0001179,2]
[327076627,1715787039922,-150.0,0.00011791,2]
[327076628,1715787039931,-150.0,0.00011796,2]
[327076629,1715787039942,-150.0,0.00011797,2]
[327076630,1715787039951,-150.0,0.00011805,2]
[327076631,1715787039961,-150.0,0.00011813,2]
[327076632,1715787039971,-150.0,0.00011814,2]
[327076633,1715787039981,-150.0,0.00011815,2]
[327076634,1715787039991,-150.0,0.00011819,2]
[327076635,1715787040002,-150.0,0.0001182,2]
[327076636,1715787040012,-150.0,0.00011822,2]
[327076637,1715787040022,-150.0,0.00011822,2]
[327076638,1715787040032,-150.0,0.00011823,2]
[327076639,1715787040042,-150.0,0.00011824,2]
[327076640,1715787040052,-1765.1878,0.0001183,2]
[327076641,1715787040062,-150.0,0.0001183,2]
[327076642,1715787040076,-150.0,0.00011831,2]
[327076643,1715787040087,-150.0,0.00011843,2]
[327076644,1715787040097,-150.0,0.00011844,2]
[327076645,1715787040107,-1000.0,0.00011847,2]
[327076646,1715787040118,-150.0,0.00011848,2]
[327076647,1715787040128,-150.0,0.00011848,2]
[327076648,1715787040138,-150.0,0.00011849,2]
[327076649,1715787040150,-150.0,0.00011858,2]
[327076650,1715787040160,-150.0,0.00011858,2]
[327076651,1715787040170,-150.0,0.0001186,2]
[327076652,1715787040180,-150.0,0.0001186,2]
[327076653,1715787040191,-150.0,0.00011861,2]
[327076654,1715787040201,-150.0,0.00011864,2]
[327076655,1715787040211,-150.0,0.00011865,2]
[327076656,1715787040223,-150.0,0.00011867,2]
[327076657,1715787040234,-150.0,0.00011874,2]
[327076658,1715787040244,-150.0,0.00011876,2]
[327076659,1715787040254,-509.31544777,0.00011878,2]
[327076660,1715787040264,-320.20007102,0.0001188,2]
[327076661,1715787040274,-150.0,0.0001188,2]
[327076662,1715787040283,-3000.0,0.0001188,2]
[327076663,1715787040293,-150.0,0.00011882,2]
[327076664,1715787040304,-150.0,0.00011883,2]
[327076665,1715787040314,-150.0,0.00011884,2]
[327076666,1715787040324,-150.0,0.00011886,2]
[327076667,1715787040333,-150.0,0.00011886,2]
[327076668,1715787040343,-150.0,0.00011889,2]
[327076669,1715787040352,-150.0,0.00011889,2]
[327076670,1715787040363,-150.0,0.00011892,2]
[327076671,1715787040373,-150.0,0.00011896,2]
[327076672,1715787040383,-3000.0,0.00011897,2]
[327076673,1715787040392,-674.09828019,0.00011898,2]
[327076674,1715787040402,-674.09828017,0.00011898,2]
[327076675,1715787040413,-674.09828017,0.00011898,2]
[327076676,1715787040423,-674.09828017,0.00011898,2]
[327076677,1715787040433,-674.09828017,0.00011898,2]
[327076678,1715787040442,-177.85033328,0.000119,2]
[327076679,1715787040453,-4570.26977971,0.000119,2]
[327076681,1715787040463,-2180.57560852,0.000119,2]
[327076683,1715787040473,-150.0,0.00011902,2]
[327076685,1715787040482,-200.0,0.00011903,2]
[327076686,1715787040492,-500.0,0.00011903,2]
[327076688,1715787040501,-200.0,0.00011904,2]
[327076690,1715787040511,-1000.0,0.00011904,2]
[327076691,1715787040521,-200.0,0.00011904,2]
[327076692,1715787040530,-500.0,0.00011904,2]
[327076693,1715787040540,-150.0,0.00011904,2]
[327076694,1715787040551,-150.0,0.00011907,2]
[327076695,1715787040561,-150.0,0.00011908,2]
[327076696,1715787040571,-150.0,0.00011908,2]
[327076697,1715787040581,-150.0,0.00011908,2]
[327076698,1715787040591,-150.0,0.00011911,2]
[327076699,1715787040601,-674.09828017,0.00011911,2]
[327076700,1715787040612,-150.0,0.00011913,2]
[327076701,1715787040621,-150.0,0.00011923,2]
[327076702,1715787040632,-150.0,0.00011924,2]
[327076703,1715787040641,-150.0,0.00011926,2]
[327076704,1715787040651,-810.0,0.0001193,2]
[327076705,1715787040660,-612.0,0.0001193,2]
[327076706,1715787040670,-422.0,0.0001193,2]
[327076707,1715787040680,-438.0,0.0001193,2]
[327076708,1715787040689,-1646.0,0.0001193,2]
[327076709,1715787040699,-150.0,0.0001193,2]
[327076710,1715787040709,-2351.0,0.0001193,2]
[327076711,1715787040719,-3157.0,0.0001193,2]
[327076712,1715787040729,-215.0,0.0001193,2]
[327076713,1715787040740,-1138.0,0.0001193,2]
[327076714,1715787040750,-294.0,0.0001193,2]
[327076715,1715787040760,-5750.0,0.0001193,2]
[327076716,1715787040770,-5911.0,0.0001193,2]
[327076717,1715787040780,-288.0,0.0001193,2]
[327076718,1715787040789,-973.0,0.0001193,2]
[327076719,1715787040799,-150.0,0.0001193,2]
[327076720,1715787040809,-150.0,0.0001193,2]
[327076721,1715787040819,-150.0,0.00011931,2]
[327076722,1715787040829,-150.0,0.00011932,2]
[327076723,1715787040839,-150.0,0.00011933,2]
[327076724,1715787040848,-150.0,0.00011936,2]
[327076725,1715787040858,-150.0,0.00011936,2]
[327076726,1715787040868,-150.0,0.00011937,2]
[327076727,1715787040878,-150.0,0.00011942,2]
[327076728,1715787040888,-150.0,0.00011942,2]
[327076729,1715787040898,-150.0,0.00011943,2]
[327076730,1715787040907,-150.0,0.00011951,2]
[327076731,1715787040916,-150.0,0.00011956,2]
[327076732,1715787040926,-150.0,0.00011956,2]
[327076733,1715787040936,-150.0,0.00011959,2]
[327076734,1715787040946,-834.513189,0.00011967,2]
[327076735,1715787040955,-157.600652,0.00011967,2]
[327076736,1715787040964,-242.958798,0.00011967,2]
[327076737,1715787040976,-1247.171485,0.00011967,2]
[327076738,1715787040986,-150.0,0.00011971,2]
[327076739,1715787040996,-150.0,0.00011974,2]
[327076740,1715787041005,-150.0,0.00011975,2]
[327076741,1715787041015,-150.0,0.00011976,2]
[327076742,1715787041025,-150.0,0.00011976,2]
[327076743,1715787041035,-150.0,0.00011977,2]
[327076744,1715787041045,-150.0,0.00011985,2]
[327076745,1715787041057,-150.0,0.00011985,2]
[327076746,1715787041071,-150.0,0.00011987,2]
[327076747,1715787041080,-500.0,0.00011988,2]
[327076748,1715787041090,-500.0,0.00011988,2]
[327076749,1715787041099,-500.0,0.00011988,2]
[327076750,1715787041110,-500.0,0.00011988,2]
[327076751,1715787041120,-512.3138,0.00011988,2]
[327076752,1715787041130,-4570.26977966,0.00011991,2]
[327076753,1715787041140,-1315.06,0.00011992,2]
[327076754,1715787041149,-2179.7408971,0.00011993,2]
[327076755,1715787041160,-27866.9975168,0.00011993,2]
[327076756,1715787041170,-884.731461,0.00011993,2]
[327076757,1715787041180,-153.2456485,0.00011993,2]
[327076758,1715787041189,-4320.0332124,0.00011993,2]
[327076759,1715787041199,-398.7281053,0.00011993,2]
[327076760,1715787041209,-278.03097649,0.00011994,2]
[327076761,1715787041219,-150.0,0.00011996,2]
[327076762,1715787041231,-150.0,0.00011997,2]
[327076763,1715787041241,-3000.0,0.00011997,2]
[327076764,1715787041250,-3000.0,0.00011997,2]
[327076765,1715787041259,-500.0,0.00011997,2]
[327076766,1715787041455,-500.0,0.00011997,2]
[327076767,1715787041465,-500.0,0.00011997,2]
[327076768,1715787041477,-735.72,0.00011997,2]
[327076769,1715787041487,-500.0,0.00011997,2]
[327076770,1715787041498,-430.50318748,0.00011998,2]
[327076771,1715787041508,-288.79492468,0.00011998,2]
[327076772,1715787041518,-248.85873816,0.00011998,2]
[327076773,1715787041527,-155.7920356,0.00011998,2]
[327076774,1715787041537,-177.08401672,0.00011998,2]
[327076775,1715787041547,-12751.45335466,0.00011998,2]
[327076776,1715787041556,-6478.52246766,0.00011998,2]
[327076777,1715787041566,-413.06779798,0.00011998,2]
[327076778,1715787041575,-156.36398372,0.00011998,2]
[327076779,1715787041585,-155.89403417,0.00011998,2]
[327076780,1715787041594,-256.74256768,0.00011998,2]
[327076781,1715787041604,-194.65788438,0.00011998,2]